[Event "Czech Open Rapid G1 2024"]
[Site "Pardubice"]
[Date "2024.07.18"]
[Round "5.35"]
[White "Lihotsky, Lukas"]
[Black "Jun, Rudolf"]
[Result "1-0"]
[Annotator "ChessBase"]
[ECO "B00"]
[WhiteElo "2129"]
[BlackElo "2232"]
[PlyCount "187"]
[EventDate "2024.07.16"]
[EventType "swiss"]
[EventCountry "CZE"]
[SourceTitle "playchess.com"]
[Source "ChessBase"]
[SourceQuality "1"]
[TimeControl "1200+10"]

1. d4 {[%emt 0:00:02]} b6 {[%emt 0:00:01]} 2. e4 {[%emt 0:00:31]} Bb7 {[%emt 0:00:01]} 3. Bd3 {[%emt 0:00:01]} c5 {[%emt 0:00:02]} 4. d5 {[%emt 0:00:56]} g6 {[%emt 0:00:02]} 5. c4 {[%emt 0:00:11]} Bg7 {[%emt 0:00:02]} 6. Nc3 {[%emt 0:00:02]} e5 {[%emt 0:00:07]} 7. h4 {[%emt 0:01:15]} h5 {[%emt 0:00:17]} 8. Nf3 {[%emt 0:00:12]} d6 {[%emt 0:00:05]} 9. Ng5 {[%emt 0:03:43]} a6 {[%emt 0:00:28]} 10. Be2 {[%emt 0:01:12]} Nf6 {[%emt 0:00:20]} 11. Be3 {[%emt 0:00:27]} Nbd7 {[%emt 0:00:05]} 12. f3 {[%emt 0:00:23]} Nh7 {[%emt 0:00:09]} 13. Nxh7 {[%emt 0:00:20]} Rxh7 {[%emt 0:00:02]} 14. Qd2 {[%emt 0:00:05]} f5 {[%emt 0:01:00]} 15. exf5 {[%emt 0:01:52]} gxf5 {[%emt 0:00:02]} 16. Bg5 {[%emt 0:00:03]} Nf6 {[%emt 0:00:52]} 17. Bd3 {[%emt 0:00:16]} Qd7 {[%emt 0:00:16]} 18. Qc2 {[%emt 0:00:26]} Bc8 {[%emt 0:00:01]} 19. O-O-O {[%emt 0:00:42]} Rh8 {[%emt 0:00:58]} 20. Rhf1 {[%emt 0:00:59]} Nh7 {[%emt 0:00:55]} 21. Bd2 {[%emt 0:01:01]} Nf6 {[%emt 0:02:38]} 22. g4 {[%emt 0:03:52]} hxg4 {[%emt 0:00:17]} 23. fxg4 {[%emt 0:00:12]} f4 {[%emt 0:01:18]} 24. g5 {[%emt 0:00:25]} Nh5 {[%emt 0:00:36]} 25. Bg6+ {[%emt 0:00:03]} Kd8 {[%emt 0:00:06]} 26. Bxh5 {[%emt 0:00:25]} Rxh5 {[%emt 0:00:03]} 27. Qg6 {[%emt 0:00:03]} Rxh4 {[%emt 0:01:13]} 28. Rh1 {[%emt 0:00:41]} Rxh1 {[%emt 0:00:01]} 29. Rxh1 {[%emt 0:00:01]} Ra7 {[%emt 0:00:01]} 30. Ne4 {[%emt 0:00:25]} Kc7 {[%emt 0:02:39]} 31. Rh7 {[%emt 0:00:40]} Kb8 {[%emt 0:00:01]} 32. Nxd6 {[%emt 0:00:20]} f3 {[%emt 0:01:38]} 33. Be3 {[%emt 0:01:03]} e4 {[%emt 0:01:51]} 34. Rh4 {[%emt 0:01:17]} Be5 {[%emt 0:01:16]} 35. Nxc8 {[%emt 0:00:32]} Kxc8 {[%emt 0:00:27]} 36. Qxe4 {[%emt 0:00:13]} Qg7 {[%emt 0:00:17]} 37. d6 {[%emt 0:00:44]} Rf7 {[%emt 0:01:45]} 38. Qc6+ {[%emt 0:00:16]} Kd8 {[%emt 0:00:02]} 39. Qxb6+ {[%emt 0:00:16]} Kd7 {[%emt 0:00:01]} 40. Qb7+ {[%emt 0:00:06]} Kxd6 {[%emt 0:00:33]} 41. Qd5+ {[%emt 0:00:02]} Kc7 {[%emt 0:00:04]} 42. Qxc5+ {[%emt 0:00:10]} Kd7 {[%emt 0:00:16]} 43. Qd5+ {[%emt 0:00:08]} Kc7 {[%emt 0:00:01]} 44. Rh6 {[%emt 0:00:34]} Rd7 {[%emt 0:00:24]} 45. Qc6+ {[%emt 0:00:06]} Kb8 {[%emt 0:00:56]} 46. Qb6+ {[%emt 0:00:10]} Kc8 {[%emt 0:00:04]} 47. Rc6+ {[%emt 0:00:17]} Bc7 {[%emt 0:00:01]} 48. Qxa6+ {[%emt 0:00:09]} Kd8 {[%emt 0:00:00]} 49. Re6 {[%emt 0:00:15]} Rd3 {[%emt 0:01:42]} 50. Qa8+ {[%emt 0:00:06]} Kd7 {[%emt 0:00:02]} 51. Qc6+ {[%emt 0:00:02]} Kc8 {[%emt 0:00:01]} 52. Re8+ {[%emt 0:00:11]} Rd8 {[%emt 0:00:01]} 53. Rxd8+ {[%emt 0:00:17]} Kxd8 {[%emt 0:00:01]} 54. Qxf3 {[%emt 0:00:15]} Kc8 {[%emt 0:00:33]} 55. Qf5+ {[%emt 0:00:07]} Kb7 {[%emt 0:00:12]} 56. g6 {[%emt 0:00:14]} Qh8 {[%emt 0:00:15]} 57. Qe4+ {[%emt 0:00:04]} Kb8 {[%emt 0:00:40]} 58. Bf4 {[%emt 0:00:16]} Qf6 {[%emt 0:00:33]} 59. Bxc7+ {[%emt 0:00:08]} Kxc7 {[%emt 0:00:02]} 60. Qd3 {[%emt 0:00:04]} Qf4+ {[%emt 0:00:15]} 61. Kc2 {[%emt 0:00:01]} Qf2+ {[%emt 0:00:02]} 62. Kc3 {[%emt 0:00:18]} Qf6+ {[%emt 0:00:03]} 63. Kb3 {[%emt 0:00:05]} Qb6+ {[%emt 0:00:01]} 64. Kc3 {[%emt 0:00:08]} Qf6+ {[%emt 0:00:07]} 65. Qd4 {[%emt 0:00:01]} Qf3+ {[%emt 0:00:25]} 66. Kd2 {[%emt 0:00:06]} Qg2+ {[%emt 0:00:02]} 67. Ke3 {[%emt 0:00:22]} Qg1+ {[%emt 0:00:04]} 68. Ke4 {[%emt 0:00:13]} Qxg6+ {[%emt 0:00:06]} 69. Ke5 {[%emt 0:00:09]} Qg7+ {[%emt 0:00:14]} 70. Kd5 {[%emt 0:00:06]} Qd7+ {[%emt 0:00:31]} 71. Kc5 {[%emt 0:00:07]} Qc6+ {[%emt 0:00:03]} 72. Kb4 {[%emt 0:00:01]} Qb7+ {[%emt 0:00:03]} 73. Kc3 {[%emt 0:00:02]} Qf3+ {[%emt 0:00:01]} 74. Kc2 {[%emt 0:00:07]} Qg2+ {[%emt 0:00:10]} 75. Qd2 {[%emt 0:00:11]} Qe4+ {[%emt 0:00:04]} 76. Kc3 {[%emt 0:00:05]} Qf3+ {[%emt 0:00:24]} 77. Kc2 {[%emt 0:00:15]} Qe4+ {[%emt 0:00:06]} 78. Kc1 {[%emt 0:00:01]} Qh1+ {[%emt 0:00:05]} 79. Qd1 {[%emt 0:00:04]} Qh6+ {[%emt 0:00:01]} 80. Kb1 {[%emt 0:00:04]} Qg6+ {[%emt 0:00:09]} 81. Qc2 {[%emt 0:00:04]} Qg1+ {[%emt 0:00:03]} 82. Qc1 Qg6+ {[%emt 0:00:02]} 83. Ka1 {[%emt 0:00:01]} Kc6 {[%emt 0:00:01]} 84. a3 {[%emt 0:00:05]} Kc5 {[%emt 0:00:25]} 85. Qc3 {[%emt 0:00:07]} Kc6 {[%emt 0:00:13]} 86. Ka2 {[%emt 0:00:02]} Qf5 {[%emt 0:00:22]} 87. Qd4 {[%emt 0:00:04]} Kc7 {[%emt 0:00:07]} 88. Qd5 {[%emt 0:00:03]} Qc2 {[%emt 0:00:09]} 89. c5 {[%emt 0:00:13]} Kc8 {[%emt 0:00:03]} 90. c6 {[%emt 0:00:04]} Kc7 {[%emt 0:00:09]} 91. Qd7+ {[%emt 0:00:12]} Kb6 {[%emt 0:00:02]} 92. Qb7+ {[%emt 0:00:01]} Kc5 {[%emt 0:00:05]} 93. c7 {[%emt 0:00:26]} Qc4+ {[%emt 0:00:02]} 94. Qb3 {[%emt 0:00:01]} 1-0

[Event "Czech Open Rapid G1 2024"]
[Site "Pardubice"]
[Date "2024.07.18"]
[Round "6.1"]
[White "Navara, David"]
[Black "Movsesian, Sergei"]
[Result "1/2-1/2"]
[Annotator "TA"]
[ECO "B22"]
[WhiteElo "2682"]
[BlackElo "2618"]
[PlyCount "41"]
[EventDate "2024.07.16"]
[EventType "swiss"]
[EventCountry "CZE"]
[SourceTitle "playchess.com"]
[Source "ChessBase"]
[SourceQuality "1"]
[TimeControl "1200+10"]

{[%evp 13,41,4,9,8,11,12,8,0,0,0,3,0,0,0,55,58,176,10,16,0,0,0,0,0,0,0,0,0,0,0]} 1. e4 {[%emt 0:00:01]} c5 {[%emt 0:00:27]} 2. Nf3 {[%emt 0:00:03]} e6 {[%emt 0:00:01]} 3. c3 {[%emt 0:00:24][%cal Bc2c3,Bc3d4,Bd4e5][%mdl 32]} Nf6 {[%emt 0:00:05]} 4. e5 {[%emt 0:00:04]} Nd5 {[%emt 0:00:01]} 5. Bc4 {[%emt 0:00:35]} d6 {[%emt 0:00:09]} 6. d4 {[%emt 0:01:38]} cxd4 {[%emt 0:00:10]} 7. cxd4 {[%emt 0:00:04]} Be7 {[%emt 0:00:10]} 8. O-O {[%emt 0:00:07]} O-O {[%emt 0:00:06]} 9. Qe2 {[%emt 0:00:21]} a6 {[%emt 0:00:54]} 10. Re1 {[%emt 0:02:06]} dxe5 {[%emt 0:00:47]} 11. dxe5 {[%emt 0:00:23]} b5 {[%emt 0:00:03]} 12. Bxd5 {[%emt 0:00:10]} Qxd5 {[%emt 0:00:33]} 13. Nc3 {[%emt 0:00:02]} Qb7 {[%emt 0:01:52]} (13... Qc6 $11) 14. Ne4 $14 {[%emt 0:01:49]} Bd7 {[%emt 0:02:59] [#] Schwarz hat schwache schwarze Felder} ({Vorzuziehen ist} 14... Nd7 $14) 15. Bg5 $2 {[%emt 0:00:40]} ({Weiss braucht} 15. Nfg5 $1 $18 {[%cal Rg5h7]} Bc6 16. Nf6+ Bxf6 (16... gxf6 $2 {geht unter.} 17. exf6 Bxf6 18. Qh5 $18) 17. exf6) 15... Bc6 $11 {[%emt 0:00:09] Die Stellung ist ausgeglichen.} 16. Bxe7 {[%emt 0:05:00]} Qxe7 {[%emt 0:00:03]} 17. Rac1 {[%emt 0:02:31]} Bd5 {[%emt 0:01:02]} 18. Nc3 {[%emt 0:04:01]} Bb7 {[%emt 0:00:27]} 19. Ne4 {[%emt 0:00:15]} Bd5 {[%emt 0:00:16][%cal Ob8d7]} 20. Nc3 {[%emt 0:00:36]} Bb7 {[%emt 0:00:02]} 21. Ne4 {[%emt 0:00:09] Gewichteter Fehlerwert: Weiß=0.24 (präzise) /Schwarz=0.14 (sehr präzise) .  Gewinn verpasst:   	Weiß=1     	---        Fehler:       	---       	Schwarz=2     OK:         	Weiß=7     	Schwarz=5     Bester:       	---       	Schwarz=1} 1/2-1/2

[Event "Czech Open Rapid G1 2024"]
[Site "Pardubice"]
[Date "2024.07.18"]
[Round "6.2"]
[White "Kuegel, Tobias"]
[Black "Nisipeanu, Liviu-Dieter"]
[Result "1/2-1/2"]
[Annotator "TA"]
[ECO "C69"]
[WhiteElo "2416"]
[BlackElo "2583"]
[PlyCount "48"]
[EventDate "2024.07.16"]
[EventType "swiss"]
[EventCountry "CZE"]
[SourceTitle "playchess.com"]
[Source "ChessBase"]
[SourceQuality "1"]
[TimeControl "1200+10"]

{[%evp 22,48,16,18,6,19,19,21,18,11,17,8,18,15,20,21,27,15,36,28,29,29,32,27,25,18,32,30,30]} 1. e4 {[%emt 0:01:54]} e5 {[%emt 0:00:06]} 2. Nf3 {[%emt 0:00:02]} Nc6 {[%emt 0:00:01]} 3. Bb5 {[%emt 0:00:01]} a6 {[%emt 0:00:02]} 4. Bxc6 {[%emt 0:00:01]} dxc6 {[%emt 0:00:01]} 5. O-O {[%emt 0:00:02]} f6 {[%emt 0:00:51]} 6. d4 {[%emt 0:00:03]} exd4 {[%emt 0:00:02]} 7. Nxd4 {[%emt 0:00:02]} c5 {[%emt 0:00:07]} 8. Nb3 {[%emt 0:00:01]} Qxd1 {[%emt 0:00:03]} 9. Rxd1 {[%emt 0:00:02]} Bg4 {[%emt 0:00:09]} 10. f3 {[%emt 0:00:02]} Bd7 {[%emt 0:00:01]} 11. Bf4 {[%emt 0:00:39]} O-O-O {[%emt 0:00:38]} 12. Nc3 {[%emt 0:00:22]} Be6 {[%emt 0:02:18]} (12... c4 {looks sharper.} 13. Na5 Bc5+ 14. Kf1 b5) 13. Rxd8+ {[%emt 0:02:19]} Kxd8 {[%emt 0:00:01]} 14. Rd1+ {[%emt 0:00:08]} Kc8 {[%emt 0:00:06] The position is equal.} 15. Nd5 {[%emt 0:00:43]} Bxd5 {[%emt 0:00:01]} 16. Rxd5 {[%emt 0:00:53]} b6 {[%emt 0:00:08]} 17. Rd1 {[%emt 0:00:41]} Ne7 {[%emt 0:00:08]} 18. Nd2 {[%emt 0:00:10]} Nc6 {[%emt 0:02:11]} 19. c3 {[%emt 0:01:09] Inhibits Nd4.} Bd6 {[%emt 0:00:25]} 20. Bxd6 {[%emt 0:01:08]} cxd6 {[%emt 0:00:01]} 21. Nc4 {[%emt 0:00:16]} Kc7 {[%emt 0:00:01]} 22. Kf2 {[%emt 0:01:16]} (22. Nxd6 $2 {too greedy.} Rd8 $19) (22. Rxd6 $2 b5 23. Rxc6+ Kxc6 $19) 22... Rd8 {[%emt 0:00:04]} 23. Ne3 {[%emt 0:00:17]} Ne7 {[%emt 0:00:24]} 24. h4 {[%emt 0:05:32]} Rd7 {[%emt 0:00:10] Weighted Error Value: White=0.01 (flawless) /Black=0.02 (flawless) .  OK:         	White=9     	Black=5      Best:        	---       	Black=1} 1/2-1/2

[Event "Czech Open Rapid G1 2024"]
[Site "Pardubice"]
[Date "2024.07.18"]
[Round "6.3"]
[White "Burdalev, Kirill"]
[Black "Pulpan, Jakub"]
[Result "1/2-1/2"]
[Annotator "RC"]
[ECO "A50"]
[WhiteElo "2348"]
[BlackElo "2383"]
[PlyCount "159"]
[EventDate "2024.07.16"]
[EventType "swiss"]
[EventCountry "CZE"]
[SourceTitle "playchess.com"]
[Source "ChessBase"]
[SourceQuality "1"]
[TimeControl "1200+10"]

1. d4 {[%emt 0:00:01]} Nf6 {[%emt 0:00:16]} 2. c4 {[%emt 0:00:01]} e6 {[%emt 0:00:05]} 3. Bf4 {[%emt 0:00:09]} d5 {[%emt 0:01:03]} 4. cxd5 {[%emt 0:00:08]} exd5 {[%emt 0:00:40]} 5. e3 {[%emt 0:00:14]} c5 {[%emt 0:01:38]} 6. dxc5 {[%emt 0:01:42]} Bxc5 {[%emt 0:00:07]} 7. Nf3 {[%emt 0:00:11]} Nc6 {[%emt 0:01:01]} 8. Nc3 {[%emt 0:00:37]} O-O {[%emt 0:02:30]} 9. Be2 {[%emt 0:00:47]} d4 {[%emt 0:02:04]} 10. exd4 {[%emt 0:00:03]} Nxd4 {[%emt 0:00:01]} 11. Nxd4 {[%emt 0:00:02]} Bxd4 {[%emt 0:00:01]} 12. O-O {[%emt 0:00:12]} Bxc3 {[%emt 0:02:36]} 13. bxc3 {[%emt 0:00:20]} Qa5 {[%emt 0:01:01]} 14. Qb3 {[%emt 0:01:58]} Nd5 {[%emt 0:01:34]} 15. Bd2 {[%emt 0:01:40]} Nb6 {[%emt 0:01:53]} 16. Bf3 {[%emt 0:01:25]} Be6 {[%emt 0:01:24]} 17. Qb4 {[%emt 0:00:01]} Qxb4 {[%emt 0:00:27]} 18. cxb4 {[%emt 0:00:01]} Bd5 {[%emt 0:00:04]} 19. Bxd5 {[%emt 0:00:55]} Nxd5 {[%emt 0:00:01]} 20. Rac1 {[%emt 0:00:01]} Rfc8 {[%emt 0:00:26]} 21. Rfd1 {[%emt 0:00:23]} f6 {[%emt 0:00:19]} 22. Kf1 {[%emt 0:01:04]} Kf7 {[%emt 0:00:03]} 23. Ke2 {[%emt 0:00:36]} h5 {[%emt 0:00:27]} 24. h4 {[%emt 0:01:01]} Ke6 {[%emt 0:00:30]} 25. a3 {[%emt 0:00:21]} Kf5 {[%emt 0:01:09]} 26. Be1 {[%emt 0:00:55]} Nf4+ {[%emt 0:00:42]} 27. Kf1 {[%emt 0:01:17]} Rxc1 {[%emt 0:00:22]} 28. Rxc1 {[%emt 0:00:01]} Nd5 {[%emt 0:00:01]} 29. Rc5 {[%emt 0:00:31]} Rd8 {[%emt 0:00:21]} 30. Ra5 {[%emt 0:00:38]} a6 {[%emt 0:00:40]} 31. b5 {[%emt 0:00:01]} axb5 {[%emt 0:00:06]} 32. Rxb5 {[%emt 0:00:01]} Rd7 {[%emt 0:00:01]} 33. f3 {[%emt 0:00:41]} Ke5 {[%emt 0:00:22]} 34. Bc3+ {[%emt 0:03:14]} Kd6 {[%emt 0:00:29]} 35. Bd4 {[%emt 0:00:36]} b6 {[%emt 0:00:05]} 36. g3 {[%emt 0:01:55]} Kc6 {[%emt 0:00:04]} 37. Rb3 {[%emt 0:00:12]} Ra7 {[%emt 0:00:06]} 38. Ke2 {[%emt 0:00:11]} Ra4 {[%emt 0:00:10]} 39. Kd3 {[%emt 0:00:02]} g5 {[%emt 0:00:51]} 40. Ke4 {[%emt 0:01:20]} Kd6 {[%emt 0:00:21]} 41. Kd3 {[%emt 0:00:31]} gxh4 {[%emt 0:00:40]} 42. gxh4 {[%emt 0:00:01]} Nf4+ {[%emt 0:00:01]} 43. Ke4 {[%emt 0:00:39]} Nd5 {[%emt 0:00:01]} 44. Kd3 {[%emt 0:00:08]} Nf4+ {[%emt 0:00:30]} 45. Ke4 {[%emt 0:00:01]} Nd5 {[%emt 0:00:13]} 46. Kd3 {[%emt 0:00:01]} Ra6 {[%emt 0:00:12]} 47. Bf2 {[%emt 0:00:19]} Ke5 {[%emt 0:00:10]} 48. Bg3+ {[%emt 0:00:03]} Ke6 {[%emt 0:00:04]} 49. Kd2 {[%emt 0:00:36]} Kf5 {[%emt 0:00:16]} 50. Rb5 {[%emt 0:00:04]} Ke6 {[%emt 0:00:01]} 51. Rb3 {[%emt 0:00:08]} Ra4 {[%emt 0:00:10]} 52. Bf2 {[%emt 0:00:04]} b5 53. Bg3 {[%emt 0:00:31]} Rd4+ {[%emt 0:00:22]} 54. Ke2 {[%emt 0:00:09]} Ra4 {[%emt 0:00:15]} 55. Be1 {[%emt 0:00:20]} Nf4+ {[%emt 0:00:03]} 56. Kf1 {[%emt 0:00:01]} Ng6 {[%emt 0:00:04]} 57. Rxb5 {[%emt 0:00:03]} Rxa3 {[%emt 0:00:18]} 58. Rxh5 {[%emt 0:00:28]} Nf4 {[%emt 0:00:01]} 59. Ra5 {[%emt 0:00:10]} Rxf3+ {[%emt 0:00:02]} 60. Kg1 {[%emt 0:00:09]} Rb3 {[%emt 0:00:04]} 61. Bd2 {[%emt 0:00:13]} Nd3 {[%emt 0:00:26]} 62. Kf1 {[%emt 0:00:10]} Ne5 {[%emt 0:00:05]} 63. h5 {[%emt 0:00:08]} Rb1+ {[%emt 0:00:20]} 64. Ke2 {[%emt 0:00:03]} Rb2 {[%emt 0:00:01]} 65. Ra6+ {[%emt 0:00:10]} Kf5 {[%emt 0:00:06]} 66. Kd1 {[%emt 0:00:05]} Rb1+ {[%emt 0:00:13]} 67. Kc2 {[%emt 0:00:07]} Rh1 {[%emt 0:00:02]} 68. h6 {[%emt 0:00:04]} Rh2 {[%emt 0:00:10]} 69. Kc3 {[%emt 0:00:05]} Rh3+ {[%emt 0:00:24]} 70. Kc2 {[%emt 0:00:03]} Ng4 {[%emt 0:00:01]} 71. Ra5+ {[%emt 0:00:17]} Kg6 {[%emt 0:00:08]} 72. Ra4 {[%emt 0:00:07]} Ne5 {[%emt 0:00:30]} 73. Ra8 {[%emt 0:00:14]} Rh2 {[%emt 0:00:07]} 74. Kc3 {[%emt 0:00:04]} Kf5 {[%emt 0:00:10]} 75. Ra7 {[%emt 0:00:13]} Ng4 {[%emt 0:00:17]} 76. Ra5+ {[%emt 0:00:25]} Ke4 {[%emt 0:00:09]} 77. Ra4+ {[%emt 0:00:02]} Kf3 {[%emt 0:00:02]} 78. Rf4+ {[%emt 0:00:10]} Kg3 {[%emt 0:00:01]} 79. Rf5 {[%emt 0:00:06]} Nxh6 {[%emt 0:00:28]} 80. Rxf6 {[%emt 0:00:07]} 1/2-1/2

[Event "Czech Open Rapid G1 2024"]
[Site "Pardubice"]
[Date "2024.07.18"]
[Round "6.4"]
[White "Jirka, Jiri"]
[Black "Dobrowolski, Piotr"]
[Result "0-1"]
[Annotator "TA"]
[ECO "A63"]
[WhiteElo "2387"]
[BlackElo "2412"]
[PlyCount "62"]
[EventDate "2024.07.16"]
[EventType "swiss"]
[EventCountry "CZE"]
[SourceTitle "playchess.com"]
[Source "ChessBase"]
[SourceQuality "1"]
[TimeControl "1200+10"]

{[%evp 21,62,4,16,17,16,23,64,59,83,83,119,124,114,113,110,110,117,28,43,37,99,95,100,100,100,85,87,104,91,91,168,160,204,193,176,162,216,229,223,226,410,107,370]} 1. d4 {[%emt 0:00:01]} e6 {[%emt 0:00:10]} 2. c4 {[%emt 0:00:01]} c5 {[%emt 0:00:01]} 3. d5 {[%emt 0:00:02]} exd5 {[%emt 0:00:01]} 4. cxd5 {[%emt 0:00:01]} d6 {[%emt 0:00:02]} 5. Nc3 {[%emt 0:00:01]} g6 {[%emt 0:00:01]} 6. Nf3 {[%emt 0:00:02]} Bg7 {[%emt 0:00:02]} 7. g3 {[%emt 0:00:01]} Nf6 {[%emt 0:00:12]} 8. Bg2 {[%emt 0:00:01]} O-O {[%emt 0:00:02]} 9. O-O {[%emt 0:00:02]} Re8 {[%emt 0:00:01]} 10. h3 {[%emt 0:00:01]} a6 {[%emt 0:00:04]} 11. a4 {[%emt 0:00:01]} Nbd7 {[%emt 0:00:01][%cal Bb8d7,Bd7f8,Bf8g6][%mdl 32]} 12. Bf4 {[%emt 0:00:02][%cal Of1e1]} Nh5 {[%emt 0:00:12]} 13. Bg5 {[%emt 0:00:41]} f6 {[%emt 0:00:32]} 14. Bd2 {[%emt 0:00:07] Hoping for g4. White is slightly better.} f5 {[%emt 0:00:03] [#]} 15. e4 $1 {[%emt 0:06:49] Strongly threatening exf5.} Nf8 {[%emt 0:01:02]} (15... Bxc3 16. bxc3) 16. exf5 {[%emt 0:01:16]} gxf5 {[%emt 0:00:13]} 17. Nh4 {[%emt 0:02:13]} Nf6 {[%emt 0:01:17]} 18. Qc2 {[%emt 0:00:12]} Qd7 {[%emt 0:00:32]} 19. f4 {[%emt 0:07:04]} (19. a5 $16 {Threatens to win with Na4.} b5 20. axb6) 19... Ng6 {[%emt 0:01:07]} 20. Nf3 {[%emt 0:00:04]} Nh5 {[%emt 0:02:47]} (20... Rb8 $14) 21. Kh2 $16 {[%emt 0:00:14]} Bf6 {[%emt 0:00:44]} 22. Rfe1 {[%emt 0:01:03][%cal Oe1e6]} Rf8 {[%emt 0:00:33]} 23. Rg1 {[%emt 0:03:08]} Qg7 {[%emt 0:02:09]} 24. Bf1 {[%emt 0:00:00]} Bd7 {[%emt 0:00:15]} 25. Bd3 {[%emt 0:00:14]} Bd8 {[%emt 0:04:24] [#]} (25... Rae8 $16 {is a better defense.}) 26. Nd1 $1 $18 {[%emt 0:00:17]} c4 {[%emt 0:00:13]} 27. Bxc4 {[%emt 0:00:27]} Rc8 {[%emt 0:00:09]} 28. Qb3 {[%emt 0:00:13]} Re8 {[%emt 0:00:44]} (28... Nf6 {keeps fighting.} 29. Bc3 b5) 29. Bd3 {[%emt 0:00:06]} Nf6 {[%emt 0:00:56]} 30. Bc3 {[%emt 0:00:26]} Ng4+ $2 {[%emt 0:00:48]} (30... Qf7 31. Qxb7 Ne4) 31. Kg2 $2 {[%emt 0:00:18]} (31. hxg4 $18 {is the precise move to win.} Rxc3 32. Nxc3 (32. bxc3 fxg4 33. Ng5 Rf8 $18) (32. Qxc3 Bf6 $18) 32... fxg4 33. Ng5 (33. Bxg6 $2 gxf3 34. Rge1 Qh6+ 35. Kg1 Rxe1+ 36. Rxe1 Qh3 $19)) 31... Qh6 $2 {[%emt 0:02:08][%mdl 40960] Weighted Error Value: White=0.23 (precise) /Black=0.29 (precise) .  Loses game:     	---       	Black=1      Missed win:     	White=1     	---        Mistake:       	White=1     	Black=4      Inaccurate:     	---       	Black=2      OK:         	White=9     	Black=7      Best:        	White=1     	Black=2      Brilliant:      	White=1     	---       . Loss on time!?} (31... Nf6 $16) 0-1

[Event "Czech Open Rapid G1 2024"]
[Site "Pardubice"]
[Date "2024.07.18"]
[Round "6.5"]
[White "Kulon, Klaudia"]
[Black "Konopka, Michal"]
[Result "1-0"]
[Annotator "RC"]
[ECO "A15"]
[WhiteElo "2380"]
[BlackElo "2326"]
[PlyCount "55"]
[EventDate "2024.07.16"]
[EventType "swiss"]
[EventCountry "CZE"]
[SourceTitle "playchess.com"]
[Source "ChessBase"]
[SourceQuality "1"]
[TimeControl "1200+10"]

1. c4 {[%emt 0:00:02]} Nf6 {[%emt 0:00:21]} 2. g3 {[%emt 0:00:02]} c6 {[%emt 0:00:06]} 3. b3 {[%emt 0:00:09]} g6 {[%emt 0:00:05]} 4. Bb2 {[%emt 0:00:02]} Bg7 {[%emt 0:00:01]} 5. e4 {[%emt 0:00:12]} O-O {[%emt 0:00:12]} 6. Bg2 {[%emt 0:00:05]} d5 {[%emt 0:00:30]} 7. cxd5 {[%emt 0:01:29]} cxd5 {[%emt 0:00:03]} 8. e5 {[%emt 0:00:02]} Nfd7 {[%emt 0:01:18]} 9. d4 {[%emt 0:00:23]} Nc6 {[%emt 0:01:47]} 10. Nc3 {[%emt 0:01:45]} Nb6 {[%emt 0:00:32]} 11. f4 {[%emt 0:01:24]} Bf5 {[%emt 0:01:07]} 12. a3 {[%emt 0:00:40]} Rc8 {[%emt 0:01:03]} 13. h3 {[%emt 0:00:34]} f6 {[%emt 0:01:54]} 14. g4 {[%emt 0:00:36]} fxe5 {[%emt 0:01:38]} 15. gxf5 {[%emt 0:00:34]} exd4 {[%emt 0:00:02]} 16. Nb5 {[%emt 0:02:54]} e5 {[%emt 0:00:18]} 17. Nf3 {[%emt 0:00:14]} a6 {[%emt 0:02:34]} 18. fxe5 {[%emt 0:00:08]} axb5 {[%emt 0:00:01]} 19. f6 {[%emt 0:00:06]} Nxe5 {[%emt 0:03:27]} 20. Nxe5 {[%emt 0:01:47]} Qxf6 {[%emt 0:00:30]} 21. Nf3 {[%emt 0:00:16]} Rce8+ {[%emt 0:00:55]} 22. Kf2 {[%emt 0:00:21]} Qh4+ {[%emt 0:01:17]} 23. Kg1 {[%emt 0:00:03]} Qg3 {[%emt 0:00:03]} 24. h4 {[%emt 0:00:28]} Re3 {[%emt 0:03:51]} 25. Rh3 {[%emt 0:00:41]} Qf4 {[%emt 0:00:03]} 26. Bc1 {[%emt 0:02:15]} d3 {[%emt 0:00:02]} 27. Ra2 {[%emt 0:00:12]} Bd4 {[%emt 0:00:18]} 28. Nxd4 {[%emt 0:00:11]} 1-0

[Event "Czech Open Rapid G1 2024"]
[Site "Pardubice"]
[Date "2024.07.18"]
[Round "6.6"]
[White "Cerveny, Martin"]
[Black "Movsesian, Julia"]
[Result "1/2-1/2"]
[Annotator "RC"]
[ECO "E35"]
[WhiteElo "2325"]
[BlackElo "2202"]
[PlyCount "84"]
[EventDate "2024.07.16"]
[EventType "swiss"]
[EventCountry "CZE"]
[SourceTitle "playchess.com"]
[Source "ChessBase"]
[SourceQuality "1"]
[TimeControl "1200+10"]

1. d4 {[%emt 0:00:01]} d5 {[%emt 0:00:02]} 2. c4 {[%emt 0:00:01]} e6 {[%emt 0:00:02]} 3. Nc3 {[%emt 0:00:01]} Nf6 {[%emt 0:00:01]} 4. cxd5 {[%emt 0:00:04]} exd5 {[%emt 0:00:01]} 5. Bg5 {[%emt 0:00:01]} Bb4 {[%emt 0:00:01]} 6. Qc2 {[%emt 0:00:05]} h6 {[%emt 0:00:17]} 7. Bxf6 {[%emt 0:00:02]} Qxf6 {[%emt 0:00:02]} 8. e3 {[%emt 0:00:14]} Bf5 {[%emt 0:00:38]} 9. Qb3 {[%emt 0:01:02]} Qb6 {[%emt 0:06:02]} 10. Qxd5 {[%emt 0:01:05]} Bd7 {[%emt 0:01:01]} 11. Qe4+ {[%emt 0:00:03]} Kf8 {[%emt 0:00:48]} 12. Rc1 {[%emt 0:00:19]} Nc6 {[%emt 0:00:13]} 13. Bc4 {[%emt 0:02:15]} Na5 {[%emt 0:01:39]} 14. Be2 {[%emt 0:00:31]} Re8 {[%emt 0:00:35]} 15. Qc2 {[%emt 0:01:24]} Bc6 {[%emt 0:01:17]} 16. Nf3 {[%emt 0:02:38]} Be4 {[%emt 0:01:45]} 17. Qd2 {[%emt 0:01:53]} Qf6 {[%emt 0:00:45]} 18. O-O {[%emt 0:00:44]} Bxc3 {[%emt 0:00:36]} 19. Rxc3 {[%emt 0:00:13]} Nc6 {[%emt 0:02:48]} 20. Rfc1 {[%emt 0:00:27]} g5 {[%emt 0:00:50]} 21. d5 {[%emt 0:00:00]} Rd8 {[%emt 0:00:18]} 22. Rc5 {[%emt 0:00:00]} g4 {[%emt 0:00:16]} 23. Ne1 {[%emt 0:00:00]} Rg8 {[%emt 0:00:32]} 24. Bb5 {[%emt 0:00:00]} Ne5 {[%emt 0:00:36]} 25. Qb4 {[%emt 0:00:00]} Bf5 {[%emt 0:01:10]} 26. Rxc7+ {[%emt 0:00:17]} Kg7 {[%emt 0:00:01]} 27. e4 {[%emt 0:00:27]} Bg6 {[%emt 0:00:42]} 28. Rxb7 {[%emt 0:03:42]} Qf4 {[%emt 0:00:07]} 29. Rcc7 {[%emt 0:01:06]} Rxd5 {[%emt 0:00:30]} 30. Qc3 {[%emt 0:00:39]} Rd2 {[%emt 0:00:11]} 31. Qe3 {[%emt 0:01:47]} Qxe3 {[%emt 0:00:08]} 32. fxe3 {[%emt 0:00:02]} Rxb2 {[%emt 0:00:02]} 33. Bc6 {[%emt 0:01:32]} Rxa2 {[%emt 0:00:20]} 34. Bd5 {[%emt 0:00:01]} Re2 {[%emt 0:00:13]} 35. Nc2 {[%emt 0:00:30]} Kh8 {[%emt 0:00:23]} 36. Kf1 {[%emt 0:00:54]} Rd2 {[%emt 0:00:01]} 37. Rxa7 {[%emt 0:00:22]} Nd3 {[%emt 0:00:10]} 38. Ra8 {[%emt 0:00:52]} Rxa8 {[%emt 0:00:01]} 39. Bxa8 {[%emt 0:00:01]} Rf2+ {[%emt 0:00:12]} 40. Kg1 {[%emt 0:00:01]} Rd2 {[%emt 0:00:01]} 41. Kf1 {[%emt 0:00:36]} Rf2+ {[%emt 0:00:00]} 42. Kg1 {[%emt 0:00:02]} Rd2 1/2-1/2